[Event "22nd Hoogeveen Open 2018"]
[Site "Hoogeveen"]
[Date "2018.10.21"]
[Round "2"]
[White "Brands, Kevin"]
[Black "De Boer, Bas"]
[Result "0-1"]
[ECO "B90"]
[WhiteElo "1862"]
[BlackElo "2102"]
[Annotator "NA"]
[PlyCount "66"]
[EventDate "2018.10.20"]
[EventType "swiss"]
[EventCountry "NED"]
[SourceTitle "playchess.com"]
[Source "ChessBase"]
[SourceQuality "1"]
[TimeControl "40/5400+30:1800+30"]

1. e4 {[%emt 0:00:00]} c5 {[%emt 0:00:00]} 2. Nf3 {[%emt 0:00:00]} d6 {[%emt 0:00:00]} 3. d4 {[%emt 0:00:00]} cxd4 {[%emt 0:00:00]} 4. Nxd4 {[%emt 0:00:00]} Nf6 {[%emt 0:00:00]} 5. Nc3 {[%emt 0:00:00]} a6 {[%emt 0:00:00]} 6. Be3 {[%emt 0:00:00]} e5 {[%emt 0:00:03]} 7. Nb3 {[%emt 0:00:00]} Be6 {[%emt 0:00:06]} 8. f3 {[%emt 0:00:29]} Be7 {[%emt 0:00:27]} 9. Qd2 {[%emt 0:00:11]} O-O {[%emt 0:00:28]} 10. O-O-O {[%emt 0:00:10]} Nbd7 {[%emt 0:00:08]} 11. g4 {[%emt 0:00:42]} b5 {[%emt 0:00:06]} 12. g5 {[%emt 0:01:12]} Nh5 {[%emt 0:00:08]} 13. Kb1 {[%emt 0:03:44] B90: Sicilian Najdorf: Unusual White 6th moves, 6 Be3 Ng4 and 6 Be3 e5} Nb6 {[%emt 0:00:09]} 14. Na5 {[%emt 0:08:24]} Rc8 {[%emt 0:03:53]} 15. Nd5 {[%emt 0:22:30]} Nxd5 {[%emt 0:00:42]} 16. exd5 {[%emt 0:00:06]} Bxd5 {[%emt 0:00:05]} 17. Qxd5 {[%emt 0:02:09]} Qxa5 {[%emt 0:00:06] [#]} 18. Bh3 $146 {[%emt 0:01:21]} ({Predecessor:} 18. c4 Nf4 19. Bxf4 exf4 20. cxb5 axb5 {½-½ (31) Leko,P (2679)-Giri,A (2762) Heraklio 2017}) 18... Rc4 {[%emt 0:12:07]} 19. Bg4 {[%emt 0:12:38]} Nf4 {[%emt 0:02:19]} 20. Bxf4 {[%emt 0:00:04]} Rxf4 {[%emt 0:01:11]} 21. Qb7 {[%emt 0:05:22]} Ra4 {[%emt 0:20:00]} 22. Be6 $11 {[%emt 0:12:14]} (22. Qxe7 {is a self mate.} Rxa2 23. c4 Qa4 24. Kc1 Qb3 25. Qxe5 dxe5 26. Rdg1 Qxb2+ 27. Kd1 Qd2#) 22... Bxg5 {[%emt 0:13:52]} 23. Rxd6 {[%emt 0:07:03]} Rd4 {[%emt 0:06:11]} 24. Rxd4 {[%emt 0:12:21]} exd4 {[%emt 0:00:07]} 25. Qd5 {[%emt 0:03:43]} Qd2 {[%emt 0:04:06]} 26. Bh3 {[%emt 0:04:40]} Rd8 {[%emt 0:01:14]} 27. Qe4 {[%emt 0:00:21]} d3 {[%emt 0:01:19]} 28. cxd3 {[%emt 0:01:10]} Bf6 {[%emt 0:06:03]} 29. d4 {[%emt 0:00:59]} g6 {[%emt 0:00:36]} 30. Qc2 {[%emt 0:02:05]} Rxd4 {[%emt 0:00:49]} 31. Rc1 {[%emt 0:00:39]} Qf4 {[%emt 0:04:23]} 32. Qc8+ {[%emt 0:00:44]} Kg7 {[%emt 0:01:17]} 33. Qc2 {[%emt 0:00:53]} Rd2 {[%emt 0:00:12]} 0-1

[Event "22nd Hoogeveen Open 2018"]
[Site "Hoogeveen"]
[Date "2018.10.21"]
[Round "2"]
[White "Van der Hagen, Loek"]
[Black "Miedema, David"]
[Result "0-1"]
[ECO "C08"]
[WhiteElo "1820"]
[BlackElo "2379"]
[Annotator "NA"]
[PlyCount "122"]
[EventDate "2018.10.20"]
[EventType "swiss"]
[EventCountry "NED"]
[SourceTitle "playchess.com"]
[Source "ChessBase"]
[SourceQuality "1"]
[TimeControl "40/5400+30:1800+30"]

1. e4 {[%emt 0:00:00]} e6 {[%emt 0:00:00]} 2. d4 {[%emt 0:00:00]} d5 {[%emt 0:00:00]} 3. Nd2 {[%emt 0:00:00]} c5 {[%emt 0:02:13]} 4. exd5 {[%emt 0:00:09]} exd5 {[%emt 0:00:05]} 5. Bb5+ {[%emt 0:00:17]} Nc6 {[%emt 0:00:54]} 6. Qe2+ {[%emt 0:01:14]} Qe7 {[%emt 0:00:09]} 7. Ndf3 {[%emt 0:01:13] C08: French Tarrasch: 3...c5 4 exd5 exd5 sidelines} (7. dxc5 Qxe2+ 8. Nxe2 Bxc5 9. Nb3 Bb6 10. Ned4 Bd7 11. Be3 Nf6 12. O-O-O O-O 13. Be2 Ne5 14. Bf4 Nc4 15. Bf3 a5 16. Kb1 a4 17. Nc1 Ne4 18. Bxe4 dxe4 {½-½ (65) Paveto,K (2424)-Santiago,Y (2414) Neuquen 2015}) 7... Qxe2+ {[%emt 0:06:40]} 8. Nxe2 {[%emt 0:02:16]} a6 {[%emt 0:00:02]} 9. Bxc6+ {[%emt 0:01:07]} bxc6 {[%emt 0:00:03]} 10. Ne5 $146 {[%emt 0:04:34]} ({Predecessor:} 10. O-O Nf6 11. Re1 Bd6 12. Ng3+ Kf8 13. c3 g6 14. Bh6+ Kg8 {1-0 (26) Muniz Rubiera,D-Baragano Campa,J Asturias 2001}) 10... Bf5 {[%emt 0:00:53]} 11. c3 {[%emt 0:03:01]} Rc8 {[%emt 0:07:42]} 12. b3 {[%emt 0:03:00]} f6 {[%emt 0:00:38]} 13. Nf3 {[%emt 0:01:40]} Be4 {[%emt 0:04:34]} 14. Ba3 {[%emt 0:06:49]} Bxf3 {[%emt 0:04:24]} 15. gxf3 {[%emt 0:00:09]} cxd4 {[%emt 0:00:02]} 16. Bxf8 {[%emt 0:00:47]} Kxf8 {[%emt 0:00:04]} 17. Nxd4 {[%emt 0:01:10]} c5 {[%emt 0:01:06]} 18. Ne6+ {[%emt 0:02:25]} Kf7 {[%emt 0:00:07]} 19. Nf4 {[%emt 0:01:03]} Ne7 {[%emt 0:08:21]} 20. O-O-O {[%emt 0:05:16]} Rhd8 {[%emt 0:00:03]} 21. Kb1 {[%emt 0:03:25]} g5 {[%emt 0:01:11]} 22. Ng2 {[%emt 0:02:51]} d4 {[%emt 0:15:34]} 23. Kb2 {[%emt 0:08:10]} Rd5 {[%emt 0:06:32]} 24. Rd2 {[%emt 0:09:31]} dxc3+ {[%emt 0:07:28]} 25. Kxc3 {[%emt 0:01:06]} Rf5 {[%emt 0:06:13]} 26. Rd3 {[%emt 0:05:02]} Nd5+ {[%emt 0:00:03]} 27. Kb2 {[%emt 0:01:34]} c4 {[%emt 0:00:17]} 28. bxc4 {[%emt 0:01:50]} Rxc4 {[%emt 0:01:26]} 29. Rhd1 {[%emt 0:02:55]} Nb6 {[%emt 0:05:08]} 30. Ka1 {[%emt 0:09:02]} Rfc5 {[%emt 0:00:53]} 31. Ne3 {[%emt 0:06:26]} Rh4 {[%emt 0:03:43]} 32. Nf1 {[%emt 0:03:00]} Na4 $17 {[%emt 0:02:48]} 33. Rd8 {[%emt 0:07:23]} Rhc4 {[%emt 0:02:29]} 34. Nd2 {[%emt 0:02:34]} Rc2 {[%emt 0:00:52]} 35. Nb3 {[%emt 0:00:41]} R5c4 {[%emt 0:06:51]} 36. R8d2 {[%emt 0:02:05]} Kg6 {[%emt 0:00:59]} 37. Rxc2 {[%emt 0:01:06]} Rxc2 {[%emt 0:00:04]} 38. Rd2 {[%emt 0:00:54]} Rc3 {[%emt 0:02:38]} 39. Rd4 {[%emt 0:01:03]} Nc5 {[%emt 0:00:58]} 40. Nxc5 {[%emt 0:01:03]} Rxc5 {[%emt 0:00:04]} 41. Kb2 {[%emt 0:10:02]} h5 {[%emt 0:02:37]} 42. h3 {[%emt 0:05:25]} Re5 {[%emt 0:02:20]} 43. Kc3 {[%emt 0:08:47]} Re2 {[%emt 0:00:48]} 44. Rd2 {[%emt 0:00:13]} Rxd2 {[%emt 0:01:28]} 45. Kxd2 {[%emt 0:00:12]} Kf5 {[%emt 0:00:24]} 46. Ke3 {[%emt 0:02:44]} a5 {[%emt 0:00:11]} 47. a4 {[%emt 0:02:19]} Ke5 {[%emt 0:00:41]} 48. f4+ {[%emt 0:01:23]} gxf4+ {[%emt 0:00:03]} 49. Kd3 {[%emt 0:01:12]} Kd5 {[%emt 0:01:35]} 50. h4 {[%emt 0:01:10]} Kc5 {[%emt 0:00:42]} 51. f3 {[%emt 0:01:18]} Kb4 {[%emt 0:00:06]} 52. Ke4 {[%emt 0:01:45]} Kxa4 {[%emt 0:00:04]} 53. Kf5 {[%emt 0:00:10]} Kb5 {[%emt 0:00:28]} 54. Kg6 {[%emt 0:00:05]} a4 {[%emt 0:00:03]} 55. Kxh5 {[%emt 0:00:09]} a3 {[%emt 0:00:04]} 56. Kg6 {[%emt 0:00:06]} a2 {[%emt 0:00:03]} 57. h5 {[%emt 0:00:06]} a1=Q {[%emt 0:00:05]} 58. h6 {[%emt 0:00:25]} Qg1+ {[%emt 0:00:13]} 59. Kf7 {[%emt 0:00:44]} Qh1 {[%emt 0:00:05]} 60. Kg7 {[%emt 0:00:09]} Qxf3 {[%emt 0:00:11]} 61. h7 {[%emt 0:00:09]} Qh5 {[%emt 0:00:04]} 0-1

[Event "22nd Hoogeveen Open 2018"]
[Site "Hoogeveen"]
[Date "2018.10.22"]
[Round "3"]
[White "Rakshitta, Ravi"]
[Black "Tomilova, Elena"]
[Result "1/2-1/2"]
[ECO "B34"]
[WhiteElo "2160"]
[BlackElo "2328"]
[Annotator "NA RC"]
[PlyCount "108"]
[EventDate "2018.10.20"]
[EventType "swiss"]
[EventCountry "NED"]
[SourceTitle "playchess.com"]
[Source "ChessBase"]
[SourceQuality "1"]
[TimeControl "40/5400+30:1800+30"]

1. e4 {[%emt 0:01:23]} c5 {[%emt 0:00:00]} 2. Nf3 {[%emt 0:00:37]} Nc6 {[%emt 0:01:29]} 3. Nc3 {[%emt 0:00:13]} g6 {[%emt 0:00:12]} 4. d4 {[%emt 0:00:04]} cxd4 {[%emt 0:00:04]} 5. Nxd4 {[%emt 0:00:07]} Bg7 {[%emt 0:00:03]} 6. Nde2 {[%emt 0:00:09]} Nf6 {[%emt 0:00:31]} 7. g3 {[%emt 0:00:09]} b5 {[%emt 0:00:08]} 8. Bg2 {[%emt 0:01:52] B34: Sizilianisch (Beschleunigtes Fianchetto)} Rb8 {[%emt 0:01:38]} 9. O-O {[%emt 0:01:37]} d6 {[%emt 0:01:36]} (9... O-O 10. h3 a5 11. a3 d6 12. Be3 Nd7 13. Rb1 b4 14. axb4 axb4 15. Nd5 Ba6 16. Re1 e6 17. Ndf4 Qc7 18. Qd2 Nce5 19. b3 Rfc8 {1-0 (58) Caruana,F (2808)-Vachier Lagrave,M (2796) Stavanger 2017}) 10. Nd5 {[%emt 0:05:22]} Nd7 {[%emt 0:00:47]} 11. c3 {[%emt 0:02:56]} O-O {[%emt 0:04:41]} 12. b3 {[%emt 0:04:16]} b4 $146 {[%emt 0:11:13]} ({Vorgänger:} 12... e6 13. Ne3 b4 14. Bd2 a5 15. Rc1 Nc5 16. c4 a4 17. Rb1 axb3 18. axb3 {½-½ (48) Kovchan,A (2558)-Azarov,S (2635) Alushta 2011}) 13. Bb2 {[%emt 0:00:15]} e6 {[%emt 0:02:41]} 14. Ne3 {[%emt 0:00:48]} Ba6 {[%emt 0:00:59]} 15. Rc1 {[%emt 0:02:46]} Rc8 {[%emt 0:07:10]} 16. Ba1 {[%emt 0:04:33]} bxc3 {[%emt 0:02:30]} 17. Bxc3 {[%emt 0:00:19]} Bxc3 {[%emt 0:00:09]} 18. Rxc3 {[%emt 0:02:49]} Bxe2 {[%emt 0:00:12]} 19. Qxe2 {[%emt 0:00:11]} Nd4 {[%emt 0:00:17]} 20. Qd2 {[%emt 0:00:25]} Rxc3 {[%emt 0:01:22]} 21. Qxd4 {[%emt 0:00:02]} Rc6 {[%emt 0:05:26]} 22. Qxa7 {[%emt 0:01:00]} h5 {[%emt 0:07:39]} 23. Qd4 {[%emt 0:10:55]} Ne5 {[%emt 0:03:46]} 24. Qd2 {[%emt 0:09:48]} Qb6 {[%emt 0:04:00]} 25. h3 {[%emt 0:01:13]} Rfc8 {[%emt 0:02:15]} 26. Kh1 {[%emt 0:00:59]} Qb5 {[%emt 0:06:17]} 27. Rd1 {[%emt 0:03:14]} Rc3 {[%emt 0:12:35]} 28. Qxd6 {[%emt 0:20:27]} Ra8 {[%emt 0:06:19]} 29. Nd5 {[%emt 0:08:44]} (29. Bf1 $142 Qa5 30. Qd2) 29... exd5 {[%emt 0:02:43]} 30. Qxe5 {[%emt 0:00:05]} Qe2 {[%emt 0:02:42]} 31. Qxd5 {[%emt 0:10:20]} (31. Rg1 $17 Rd3 32. Rf1) 31... Rxa2 {[%emt 0:00:12]} 32. e5 {[%emt 0:00:20]} Rcc2 {[%emt 0:02:19]} ({Less strong is} 32... Qxf2 33. Rf1 $15) 33. Rf1 {[%emt 0:02:12]} Rd2 {[%emt 0:00:39]} 34. Qc5 {[%emt 0:00:43]} Rac2 {[%emt 0:00:33]} 35. Qb6 {[%emt 0:01:42]} Qxe5 {[%emt 0:00:34]} 36. b4 {[%emt 0:00:18]} Rb2 {[%emt 0:00:39]} 37. Bc6 {[%emt 0:02:35] [#]} h4 $1 {[%emt 0:04:52]} 38. gxh4 {[%emt 0:01:04]} Qc3 {[%emt 0:01:45]} 39. Bg2 {[%emt 0:01:46]} Qxb4 {[%emt 0:01:49]} 40. Qxb4 {[%emt 0:00:37]} Rxb4 {[%emt 0:00:02]} 41. h5 {[%emt 0:03:57]} g5 {[%emt 0:03:33]} (41... gxh5 $142 42. Bf3 h4) 42. Bf3 {[%emt 0:01:58] [#]} Kg7 {[%emt 0:04:19]} (42... Rdb2 $1 $19 43. Kg2 Rc2) 43. Kg2 {[%emt 0:00:41]} Rbb2 {[%emt 0:02:39]} 44. Bg4 {[%emt 0:01:07]} Rb5 {[%emt 0:00:49]} 45. Rd1 {[%emt 0:00:17]} (45. Ra1 $17 {was called for.}) 45... Rc2 {[%emt 0:04:36]} (45... Rxd1 $19 46. Bxd1 Kh6) 46. Rd6 {[%emt 0:01:05]} f6 {[%emt 0:08:26]} 47. h6+ {[%emt 0:01:16]} Kg6 {[%emt 0:01:15]} ({Resist} 47... Kxh6 48. Rxf6+ Kg7 49. Ra6 $17) 48. h7 {[%emt 0:00:02]} Rb8 {[%emt 0:01:47]} 49. Rd5 {[%emt 0:00:06]} Rc7 {[%emt 0:01:03]} 50. Bf5+ {[%emt 0:00:01]} Kg7 {[%emt 0:00:18]} 51. Kg3 {[%emt 0:00:23]} Re7 {[%emt 0:02:53]} 52. f3 {[%emt 0:00:49]} Reb7 {[%emt 0:03:35]} 53. Rc5 {[%emt 0:07:05]} Rf8 {[%emt 0:01:08]} 54. h4 $11 {[%emt 0:02:27]} gxh4+ {[%emt 0:01:20]} 1/2-1/2

[Event "22nd Hoogeveen Open 2018"]
[Site "Hoogeveen"]
[Date "2018.10.22"]
[Round "3"]
[White "Mijnheer, Peter"]
[Black "De Vries, Emma"]
[Result "1-0"]
[ECO "C06"]
[WhiteElo "2092"]
[BlackElo "1905"]
[Annotator "NA RC"]
[PlyCount "75"]
[EventDate "2018.10.20"]
[EventType "swiss"]
[EventCountry "NED"]
[SourceTitle "playchess.com"]
[Source "ChessBase"]
[SourceQuality "1"]
[TimeControl "40/5400+30:1800+30"]

1. e4 {[%emt 0:07:40]} e6 {[%emt 0:00:00]} 2. d4 {[%emt 0:00:28]} d5 {[%emt 0:00:00]} 3. Nd2 {[%emt 0:00:06]} Nf6 {[%emt 0:00:00]} 4. e5 {[%emt 0:00:06]} Nfd7 {[%emt 0:00:00]} 5. c3 {[%emt 0:00:13]} c5 {[%emt 0:00:04]} 6. Bd3 {[%emt 0:00:10]} Nc6 {[%emt 0:00:11]} 7. Ne2 {[%emt 0:00:07]} cxd4 {[%emt 0:00:17]} 8. cxd4 {[%emt 0:00:06]} f6 {[%emt 0:00:09]} 9. exf6 {[%emt 0:00:16]} Nxf6 {[%emt 0:00:05]} 10. O-O {[%emt 0:00:17]} Bd6 {[%emt 0:00:12]} 11. Nf3 {[%emt 0:00:10]} Qc7 {[%emt 0:00:15]} 12. Nc3 {[%emt 0:01:47]} a6 {[%emt 0:00:15]} 13. Bg5 {[%emt 0:01:19]} O-O {[%emt 0:00:31]} 14. Bh4 {[%emt 0:01:37]} g6 {[%emt 0:08:46]} 15. Bg3 {[%emt 0:02:24]} Nh5 {[%emt 0:05:53] C06: French Tarrasch: 3...Nf6 4 e5 Nfd7 5 Bd3 main lines} (15... Bxg3 16. hxg3 Qg7 17. Qd2 Ng4 18. Bc2 Bd7 19. Na4 Rxf3 20. gxf3 Nxd4 21. Kg2 Nh2 22. Rh1 Nhxf3 23. Qd1 {0-1 (40) Lawson,E (2367)-Rodriguez Vila,A (2523) Buenos Aires 2005}) 16. Bxd6 {[%emt 0:01:50]} Qxd6 {[%emt 0:00:04]} 17. Re1 {[%emt 0:01:40]} Ng7 $146 {[%emt 0:07:15]} ({Predecessor:} 17... Bd7 18. a4 Rf6 19. Ng5 Qf4 20. Nxh7 Kxh7 21. Qxh5+ Kg7 22. Qe2 Rh8 23. h3 {0-1 (64) Rafiee,M (2135)-Wahedi,A (2287) Germany 2012}) 18. a3 {[%emt 0:22:06]} Bd7 {[%emt 0:15:58]} 19. b4 {[%emt 0:07:51]} Nf5 {[%emt 0:08:43]} 20. Bxf5 {[%emt 0:11:04]} Rxf5 {[%emt 0:01:30]} 21. Re3 {[%emt 0:02:43]} b5 {[%emt 0:07:27]} 22. Qd3 {[%emt 0:00:39]} Raf8 {[%emt 0:04:37]} 23. Rae1 {[%emt 0:02:48]} Qf4 {[%emt 0:19:01]} 24. Ne2 {[%emt 0:02:00]} Qh6 {[%emt 0:00:12]} ({Better is} 24... Qd6) 25. Ng3 {[%emt 0:15:05]} Rf4 {[%emt 0:01:19]} 26. h3 {[%emt 0:02:42]} Qg7 {[%emt 0:05:42]} 27. Ne2 {[%emt 0:00:24]} R4f6 {[%emt 0:05:25]} 28. Rf1 {[%emt 0:00:48]} a5 {[%emt 0:04:53]} 29. Ne5 {[%emt 0:06:20]} axb4 {[%emt 0:02:30]} 30. Nxc6 {[%emt 0:00:21]} Bxc6 {[%emt 0:00:01]} 31. axb4 {[%emt 0:00:13]} Qe7 {[%emt 0:01:03]} 32. Qd2 {[%emt 0:02:50]} Ra8 {[%emt 0:02:12]} 33. Nc1 {[%emt 0:00:00]} Be8 {[%emt 0:01:26]} 34. Nd3 {[%emt 0:00:00]} g5 {[%emt 0:00:32]} 35. Ne5 {[%emt 0:00:00]} Bg6 {[%emt 0:00:28]} (35... Ra4 $16) 36. Rg3 {[%emt 0:00:08]} Ra4 $2 {[%emt 0:00:29]} (36... Rf4 $16 37. Rc3 Rff8) 37. Rc1 {[%emt 0:00:46]} Rxb4 $18 {[%emt 0:00:33]} (37... Rf4 38. Rc8+ Kg7) 38. Nc6 {[%emt 0:00:21]} 1-0

[Event "22nd Hoogeveen Open 2018"]
[Site "Hoogeveen"]
[Date "2018.10.22"]
[Round "3"]
[White "Verhoef, Pieter"]
[Black "Kutchoukov, Daniel"]
[Result "1-0"]
[ECO "B19"]
[WhiteElo "2058"]
[BlackElo "1882"]
[Annotator "NA RC"]
[PlyCount "47"]
[EventDate "2018.10.20"]
[EventType "swiss"]
[EventCountry "NED"]
[SourceTitle "playchess.com"]
[Source "ChessBase"]
[SourceQuality "1"]
[TimeControl "40/5400+30:1800+30"]

1. e4 {[%emt 0:02:37]} c6 {[%emt 0:00:00]} 2. d4 {[%emt 0:00:05]} d5 {[%emt 0:00:00]} 3. Nd2 {[%emt 0:00:05]} dxe4 {[%emt 0:00:00]} 4. Nxe4 {[%emt 0:00:07]} Bf5 {[%emt 0:00:14]} 5. Ng3 {[%emt 0:00:07]} Bg6 {[%emt 0:00:04]} 6. h4 {[%emt 0:00:06]} h6 {[%emt 0:00:03]} 7. Nf3 {[%emt 0:00:05]} e6 {[%emt 0:00:07]} 8. Ne5 {[%emt 0:00:05]} Bh7 {[%emt 0:00:18]} 9. Bd3 {[%emt 0:00:06]} Bxd3 {[%emt 0:00:06]} 10. Qxd3 {[%emt 0:00:06]} Nd7 {[%emt 0:03:25] B19: Classical Caro-Kann: 4...Bf5 main line} 11. Qe2 {[%emt 0:00:07]} Bd6 $146 {[%emt 0:14:14]} ({Predecessor:} 11... Ngf6 12. Bd2 c5 13. Nxd7 Qxd7 14. dxc5 Bxc5 15. O-O-O Qa4 16. Bc3 Be7 17. Rd4 Qc6 18. Rc4 Qxg2 {½-½ (37) Predke,A (2601)-Matlakov,M (2738) Moscow 2017}) 12. Bf4 {[%emt 0:05:07]} Ndf6 {[%emt 0:08:02]} 13. Nf5 {[%emt 0:04:52]} Bf8 {[%emt 0:10:09]} 14. Nc4 {[%emt 0:06:49]} Nd5 {[%emt 0:23:10]} 15. Bg3 {[%emt 0:12:29]} Qd7 {[%emt 0:30:51]} 16. O-O-O {[%emt 0:04:33]} Ngf6 {[%emt 0:01:16]} 17. h5 {[%emt 0:07:24]} b5 {[%emt 0:04:47]} 18. Ne5 {[%emt 0:04:09]} Qb7 {[%emt 0:00:33]} 19. c4 {[%emt 0:05:14]} bxc4 {[%emt 0:00:54]} 20. Nxc4 {[%emt 0:00:07]} Qd7 $16 {[%emt 0:01:05]} 21. Rhe1 {[%emt 0:10:07]} Nb6 {[%emt 0:00:38]} 22. Ncd6+ {[%emt 0:03:46]} Bxd6 {[%emt 0:00:08]} 23. Bxd6 {[%emt 0:00:06]} O-O-O {[%emt 0:00:53]} 24. Qa6+ {[%emt 0:00:19]} 1-0

[Event "22nd Hoogeveen Open 2018"]
[Site "Hoogeveen"]
[Date "2018.10.22"]
[Round "3"]
[White "Biermann, Florian"]
[Black "Oord, Raymon"]
[Result "1/2-1/2"]
[ECO "D11"]
[WhiteElo "2024"]
[BlackElo "1900"]
[Annotator "NA RC"]
[PlyCount "130"]
[EventDate "2018.10.20"]
[EventType "swiss"]
[EventCountry "NED"]
[SourceTitle "playchess.com"]
[Source "ChessBase"]
[SourceQuality "1"]
[TimeControl "40/5400+30:1800+30"]

1. c4 {[%emt 0:00:00]} c6 {[%emt 0:05:45]} 2. d4 {[%emt 0:00:30]} d5 {[%emt 0:00:26]} 3. Qc2 {[%emt 0:00:06]} Nf6 {[%emt 0:00:38]} 4. Nf3 {[%emt 0:00:37]} g6 {[%emt 0:05:26]} 5. Bf4 {[%emt 0:12:54]} Nh5 {[%emt 0:13:56] D11: Slav Defence: 3 Nf3 sidelines and 3...Nf6 4 e3 Bg4} (5... Bg7 6. e3 O-O 7. cxd5 Bf5 8. Qb3 Bxb1 9. Rxb1 Qa5+ 10. Nd2 Nxd5 11. Bg3 e5 12. dxe5 Nd7 13. Qa3 Qxa3 14. bxa3 b5 {0-1 (57) Romanov,E (2611)-Saric,I (2689) Biograd 2018}) 6. Be5 {[%emt 0:05:49]} f6 {[%emt 0:02:41]} 7. Bg3 {[%emt 0:00:20]} Nxg3 {[%emt 0:02:17]} 8. hxg3 {[%emt 0:00:24]} Bf5 {[%emt 0:07:40]} 9. Qb3 {[%emt 0:03:54]} Qb6 $146 {[%emt 0:04:03]} ({Predecessor:} 9... Qd7 10. e3 Bg7 11. Nc3 Be6 12. cxd5 cxd5 13. Bb5 {1-0 (46) Rabe,K (2060)-Bernhardt,G (2026) Altenholz 2009}) 10. e3 {[%emt 0:07:38]} e6 {[%emt 0:09:54]} 11. Nc3 {[%emt 0:04:41]} g5 {[%emt 0:03:45]} 12. Be2 {[%emt 0:04:47]} Nd7 {[%emt 0:05:17]} 13. Nd2 {[%emt 0:06:20]} Bg6 {[%emt 0:09:08]} 14. Bg4 {[%emt 0:08:14]} f5 {[%emt 0:05:53]} 15. Be2 {[%emt 0:01:38]} Bg7 {[%emt 0:02:38]} 16. f4 {[%emt 0:03:36]} g4 {[%emt 0:02:28]} 17. c5 {[%emt 0:01:52]} Qxb3 {[%emt 0:02:16]} 18. Nxb3 {[%emt 0:00:24]} Kf7 {[%emt 0:01:46]} (18... b6 $17) 19. Kf2 {[%emt 0:02:43]} (19. Na5 $11) 19... h5 {[%emt 0:00:49]} ({Better is} 19... b6 $17) 20. Na5 {[%emt 0:01:09]} Rab8 {[%emt 0:02:04]} 21. b4 {[%emt 0:06:16]} Bf6 {[%emt 0:02:16]} 22. Rac1 {[%emt 0:00:58]} Bd8 {[%emt 0:01:40]} 23. Rb1 {[%emt 0:05:12]} Bc7 {[%emt 0:03:49]} 24. Rb2 {[%emt 0:02:41]} Nf6 {[%emt 0:01:30]} 25. a4 {[%emt 0:02:05]} Rhe8 {[%emt 0:00:55]} 26. Rc1 {[%emt 0:04:06]} a6 {[%emt 0:01:15]} 27. Nb3 {[%emt 0:01:07]} Ra8 {[%emt 0:01:45]} 28. Ra1 {[%emt 0:00:16]} Ra7 {[%emt 0:00:37]} 29. Nc1 {[%emt 0:00:40]} Ne4+ {[%emt 0:00:36]} 30. Nxe4 {[%emt 0:00:09]} fxe4 {[%emt 0:00:08]} 31. Na2 {[%emt 0:00:36]} Kf6 {[%emt 0:00:22]} 32. Nc3 {[%emt 0:00:25]} Rea8 {[%emt 0:00:24]} 33. Ke1 {[%emt 0:01:31]} Be8 {[%emt 0:00:24]} 34. Kd2 {[%emt 0:00:37]} Ke7 {[%emt 0:00:44]} 35. Rab1 {[%emt 0:00:24]} b5 {[%emt 0:01:12]} 36. cxb6 {[%emt 0:00:39]} Bxb6 {[%emt 0:00:09]} 37. a5 {[%emt 0:02:47]} Bc7 {[%emt 0:00:46]} 38. Na4 {[%emt 0:00:18]} Bd6 {[%emt 0:00:53]} 39. Nc5 {[%emt 0:00:05]} Bxc5 {[%emt 0:00:36]} 40. bxc5 {[%emt 0:00:09]} Bd7 {[%emt 0:00:30]} 41. Rb8 {[%emt 0:35:28]} Bc8 {[%emt 0:08:11]} 42. R8b6 {[%emt 0:00:00]} (42. Rxa8 $18 Rxa8 43. Rh1) 42... Bd7 {[%emt 0:01:35]} 43. Rb7 {[%emt 0:00:00]} Kd8 {[%emt 0:05:12]} 44. Rxa7 {[%emt 0:00:00]} Rxa7 {[%emt 0:00:02]} 45. Rb6 {[%emt 0:00:00]} Kc7 {[%emt 0:00:54]} 46. Bxa6 {[%emt 0:00:00]} ({Don't do} 46. Rxa6 $6 Rxa6 47. Bxa6 Kb8 $16) 46... Ra8 $1 {[%emt 0:06:56]} 47. Kc3 {[%emt 0:00:00]} Ra7 $2 {[%emt 0:04:58]} (47... Bc8 $1 $11 {and Black has nothing to worry.} 48. Bxc8 Rxc8) 48. Kb4 {[%emt 0:00:00]} Be8 {[%emt 0:00:24]} 49. Be2 {[%emt 0:00:00]} Bd7 {[%emt 0:00:33]} 50. a6 {[%emt 0:00:00]} Be8 {[%emt 0:00:49]} 51. Ka5 {[%emt 0:00:00]} Bd7 {[%emt 0:01:50]} 52. Rb1 {[%emt 0:00:00]} Be8 {[%emt 0:00:27]} 53. Rh1 {[%emt 0:00:00]} Ra8 {[%emt 0:01:36]} 54. Bxg4 {[%emt 0:00:00]} ({White should try} 54. Kb4 $18) 54... hxg4 {[%emt 0:00:15]} 55. Rh7+ {[%emt 0:00:00]} Bd7 {[%emt 0:01:40]} 56. Rg7 {[%emt 0:00:00]} Ra7 {[%emt 0:00:26]} 57. Rxd7+ {[%emt 0:00:00]} Kxd7 {[%emt 0:00:09]} 58. Kb6 $11 {[%emt 0:00:00]} Rc7 {[%emt 0:01:56]} 59. a7 {[%emt 0:00:00]} Rc8 {[%emt 0:00:25]} 60. Kb7 {[%emt 0:00:00]} Rc7+ {[%emt 0:00:52]} 61. Kb8 {[%emt 0:00:00]} Rc8+ {[%emt 0:00:10]} 62. Kb7 {[%emt 0:00:38]} Ra8 {[%emt 0:00:18]} 63. Kb6 {[%emt 0:00:01]} Rc8 {[%emt 0:00:01]} 64. Ka6 {[%emt 0:00:01]} Ra8 {[%emt 0:00:04]} 65. Kb7 {[%emt 0:00:06]} Kd8 1/2-1/2